Cogmind - Beta 15 @@@ ROGUE MODE // 2025.07.22 @ 17:39:44 Player: Annull999 Result: Destroyed by S-10 Pest with Light Assault Rifle Performance ------------- Evolutions (0) 0 Regions Visited (1) 200 Robots Destroyed (10) 50 Value Destroyed (258) 258 Prototype IDs (0) 0 Alien Tech Used (0) 0 Bonus (0) 0 TOTAL SCORE: 508 Bonus ------- None Cogmind --------- Core Integrity 0/250 Matter 260/300 Energy 250/250 System Corruption 0% Temperature Cool (20) Movement Walking (120) Location -10/Materials Parts ------- > --- POWER (1) -------- Ion Engine > --- PROPULSION (2) --- Aluminum Leg Aluminum Leg > --- UTILITY (2) ------ Small Storage Unit Sensor Array > --- WEAPON (2) ------- Light Assault Rifle Light Cannon > --- INVENTORY (8) ---- Ion Engine Light Nuclear Core Light Treads Light Treads Wheel Wheel Sensor Array Peak State ------------ > --- POWER ------------ Ion Engine > --- PROPULSION ------- Aluminum Leg Aluminum Leg > --- UTILITY ---------- Small Storage Unit Sensor Array > --- WEAPON ----------- Small Laser Light Assault Rifle > --- INVENTORY -------- Ion Engine Light Nuclear Core Light Treads Light Treads Wheel Wheel Sensor Array Light Cannon [Rating: 8] Favorites ----------- Power Ion Engine Engine Ion Engine Propulsion Aluminum Leg Leg Aluminum Leg Utility Small Storage Unit Device Sensor Array Storage Small Storage Unit Weapon Small Laser Energy Gun Small Laser Ballistic Gun Light Assault Rifle Ballistic Cannon Light Cannon Build | -11 -10 ------- Run | Yrd Mat Slots Evolved . | . . Power . | . . Propulsion . | . . Utility . | . . Weapon . | . . Parts Attached 8 | . 8 Power 2 | . 2 Engine 2 | . 2 Core . | . . Reactor . | . . Propulsion 1 | . 1 Treads . | . . Leg 1 | . 1 Wheel . | . . Hover . | . . Flight . | . . Utility 1 | . 1 Device 1 | . 1 Storage . | . . Processor . | . . Hackware . | . . Protection . | . . Artifact . | . . Weapon 4 | . 4 Energy Gun 2 | . 2 Energy Cannon . | . . Ballistic Gun 1 | . 1 Ballistic Cannon 1 | . 1 Launcher . | . . Special Weapon . | . . Impact Weapon . | . . Slashing Weapon . | . . Piercing Weapon . | . . Special Melee Weapon . | . . Unidentified Prototypes . | . . Parts Lost 4 | . 4 Power 1 | . 1 Propulsion 1 | . 1 Utility . | . . Weapon 2 | . 2 Highest Loss Streak 3 | . 3 To Critical Strikes . | . . Average Backups 6 | . 6 Power 1 | . 1 Propulsion 4 | . 4 Utility . | . . Weapon . | . . Tool/Special . | . . Unused Backups 5 | . 5 Power 4 | . 4 Propulsion . | . . Utility 1 | . 1 Weapon . | . . Tool/Special . | . . Average Slot Usage (%) 88 | . 88 Engine 14 | . 14 Leg 25 | . 25 Device 5 | . 5 Storage 14 | . 14 Energy Gun 17 | . 17 Ballistic Gun 8 | . 8 Peak Build Rating 8 | . 8 Average Rating 6 | . 6 On Entrance 6 | 6 6 Naked Turns . | . . Heaviest Build 15 | 11 15 Greatest Support 20 | 20 20 Greatest Overweight (x) 1 | . 1 Average Overweight (x) . | . . Largest Inventory Capacity 8 | . 8 Average Capacity 8 | . 8 Most Carried 8 | . 8 Average Carried 6 | . 6 Final Capacity 8 | 8 8 Final Carried 7 | 6 7 Class Distribution -------------------- 100% | Mutant Dominant Class ---------------- Mutant | -10/Materials Resources | -11 -10 ----------- Run | Yrd Mat Matter Collected 281 | 200 81 Remotely . | . . Salvage Created 347 | . 347 Parts 22 | . 22 Haulers Intercepted . | . . Recyclers Shooed . | . . Parts Field Recycled . | . . Retrieved Matter . | . . Parts Self-Destructed . | . . Prevented . | . . Kills | -11 -10 ------- Run | Yrd Mat Combat Hostiles Destroyed 9 | . 9 Guns 9 | . 9 Classes Destroyed 3 | . 3 Worker 1 | . 1 Swarmer 3 | . 3 Grunt 6 | . 6 Best Kill Streak 2 | . 2 Combat Bots Only 2 | . 2 Max Kills in Single Turn 1 | . 1 Gunslinging . | . . Exploded . | . . Melee . | . . Uniques/NPCs Destroyed . | . . Combat | -11 -10 -------- Run | Yrd Mat Hostile Shots Fired 132 | . 132 Missed 42 | . 42 Hits 90 | . 90 Projectile 90 | . 90 Critical Strikes 1 | . 1 Damage Taken 849 | . 849 Core 256 | . 256 Absorbed by Shields . | . . Core Remaining (%) 100 | 100 . Volleys Fired 46 | . 46 Largest 2 | . 2 Hottest 80 | . 80 Shots Fired 83 | . 83 Gun 77 | . 77 Cannon 6 | . 6 Launcher . | . . Special . | . . Kinetic 33 | . 33 Thermal 30 | . 30 Explosive . | . . Electromagnetic 20 | . 20 Robot Hit Streak 5 | . 5 Robot Miss Streak 4 | . 4 Penetration Max . | . . Secondary Targets 3 | . 3 Max Gunslinging Chain 1 | . 1 Shots Hit Robots 41 | . 41 Core Hits 18 | . 18 Critical Kills . | . . Critical Parts Destroyed . | . . Critical Strikes 1 | . 1 Corrupt 1 | . 1 Melee Attacks . | . . Impact . | . . Slashing . | . . Piercing . | . . Sneak Attacks . | . . Combat Hostiles . | . . Follow-up Attacks . | . . Damage Inflicted 469 | . 469 Guns 450 | . 450 Cannons 18 | . 18 Explosions . | . . Melee . | . . Ramming 1 | . 1 Kinetic 155 | . 155 Thermal 144 | . 144 Explosive . | . . Electromagnetic 169 | . 169 Impact . | . . Slashing . | . . Piercing . | . . Highest Corruption . | . . Average Corruption . | . . Corruption Purged . | . . Corruption Blocked . | . . Overload Shots . | . . Overflow Damage . | . . Projectiles . | . . Explosions . | . . Melee . | . . Knockbacks . | . . Impact . | . . Kinetic . | . . Secondary . | . . Self-Inflicted Damage . | . . Shots . | . . Rammed . | . . Targets Rammed 1 | . 1 Kicked 1 | . 1 Crushed . | . . Highest Temperature 196 | . 196 Average Temperature 68 | . 68 Received Heat Transfer 234 | . 234 Siege Activations . | . . Martial Activations . | . . Shielding Activations . | . . Robots Disrupted . | . . Combat Hostiles . | . . Robots Corrupted . | . . Combat Hostiles . | . . Parts Fried . | . . Impact Corruptions . | . . Robots Melted . | . . Combat Hostiles . | . . Parts Melted . | . . Heat Transferred 325 | . 325 Parts Sabotaged . | . . Parts Stolen . | . . Parts Stripped . | . . Power Chain Reactions . | . . Alert | -11 -10 ------- Run | Yrd Mat Maximum Alert Level . | . . Low Security (%) 100 | . 100 Level 1 . | . . Level 2 . | . . Level 3 . | . . Level 4 . | . . Level 5 . | . . High Security . | . . Max Security . | . . Peak Influence 120 | . 120 Initial . | . . Average 51 | . 51 Influence Increases 249 | . 249 Destroy 0b10 Robot/C 180 | . 180 Destroy 0b10 Robot/NC 5 | . 5 Destroy Leader 30 | . 30 Successful Hack 4 | . 4 Disable Machine 15 | . 15 Lose Combat Pursuer 15 | . 15 Influence Decreases 155 | . 155 Time Decay 115 | . 115 Lost Part 40 | . 40 Squads Dispatched 1 | . 1 Investigation . | . . Extermination . | . . Reinforcement 1 | . 1 Assault . | . . Garrison . | . . Intercept . | . . Searches Triggered . | . . Construction Impeded . | . . Haulers Reinforced . | . . Active Scanning Responses . | . . Cargo Convoy Interrupts . | . . Stealth | -11 -10 --------- Run | Yrd Mat Distress Signals 2 | . 2 Communications Jammed . | . . Distress Signals . | . . Times Spotted 14 | . 14 Peak Tracking Total 4 | . 4 Tactical Retreats 1 | . 1 Traps | -11 -10 ------- Run | Yrd Mat Traps Triggered . | . . Indirectly . | . . Trap Hack Attempts . | . . Triggered . | . . Disarmed . | . . Reprogrammed . | . . Reused . | . . Traps Extracted . | . . Installed . | . . Triggered . | . . Machines | -11 -10 ---------- Run | Yrd Mat Machines Disabled 1 | . 1 Max in Single Turn 1 | . 1 Machines Repaired . | . . Machines Dismantled . | . . Machines Sabotaged . | . . Overloaded Fab Kills . | . . Hacking | -11 -10 --------- Run | Yrd Mat Machines Accessed 1 | . 1 Terminals 1 | . 1 Fabricators . | . . Repair Stations . | . . Recycling Units . | . . Scanalyzers . | . . Garrison Access . | . . Total Hacks 3 | . 3 Successful 1 | . 1 Failed 2 | . 2 Catastrophic . | . . Database Lockouts . | . . Manual 2 | . 2 Terminals 3 | . 3 Fabricators . | . . Repair Stations . | . . Recycling Units . | . . Scanalyzers . | . . Garrison Access . | . . Terminal Hacks 1 | . 1 Locate Traps 1 | . 1 Fabricator Hacks . | . . Repair Station Hacks . | . . Recycling Unit Hacks . | . . Scanalyzer . | . . Garrison Access Hacks . | . . Unauthorized Hacks . | . . Terminals . | . . Fabricators . | . . Repair Stations . | . . Recycling Units . | . . Scanalyzers . | . . Garrison Access . | . . Data Cores Recovered . | . . Used . | . . Hacking Detections 1 | . 1 Full Trace Events 1 | . 1 Feedback Events . | . . Feedback Blocked . | . . Robot Schematics Acquired . | . . Robots Built . | . . Authchips . | . . Time . | . . Total Robot Build Rating . | . . Part Schematics Acquired . | . . Parts Built . | . . Authchips . | . . Time . | . . Total Part Build Rating . | . . Parts Repaired . | . . Time . | . . Parts Recycled . | . . Recycled Matter . | . . Retrieved Matter . | . . Retrieved Components . | . . Parts Scanalyzed . | . . Part Schematics Acquired . | . . Parts Damaged . | . . Bothacking | -11 -10 ------------ Run | Yrd Mat Used RIF Installer . | . . Robots Hacked . | . . Non-combat . | . . Combat . | . . Robot Hacks Applied . | . . Relay Couplers Released . | . . Fabnet Peak Effective % . | . . Robots Rewired . | . . Allies Hacked . | . . Hacks Repelled . | . . Allies | -11 -10 -------- Run | Yrd Mat Total Allies . | . . Largest Group . | . . Highest-Rated Group . | . . Highest-Rated Ally . | . . Total Orders . | . . Ally Attacks . | . . Total Damage . | . . Kills . | . . Allies Corrupted . | . . Allies Melted . | . . Intel | -11 -10 ------- Run | Yrd Mat Active Infowar (turns) 118 | . 118 Sensors 118 | . 118 Robot Analysis Total . | . . Derelict Logs Recovered . | . . Drone Launches . | . . Drone Recoveries . | . . Exploration | -11 -10 ------------- Run | Yrd Mat Turns Passed 281 | . 281 Spaces Moved 103 | 1 102 Core . | . . Treads . | . . Legs 103 | 1 102 Wheels . | . . Hover . | . . Flight . | . . Fastest Speed 120 | 120 120 Average Speed 126 | 120 126 Slowest Speed 190 | 120 190 Overloaded Moves . | . . Propulsion Burnouts . | . . Robots Hopped . | . . Potential Cave-ins . | . . Cave-ins Triggered . | . . Exploration Rate (%) 12 | 2 23 Regions Visited 1 Branch Regions . Pre-discovered Areas . | . . Known Exits Taken . | . . Unknown Exits Taken 1 | 1 . Scrap Searched . | . . Spaces Dug . | . . Terrain Destroyed . | . . Melee . | . . Projectile . | . . AOE . | . . Terrain Rammed . | . . Walls Destroyed . | . . Machines Disabled . | . . Actions | -11 -10 --------- Run | Yrd Mat Total 176 | . 176 Wait 9 | . 9 Move 102 | . 102 Hop . | . . Pick Up 8 | . 8 Fast Attach . | . . Attach 5 | . 5 Detach . | . . Swap 3 | . 3 Drop 2 | . 2 Fire 46 | . 46 Melee . | . . Ram . | . . Kick 1 | . 1 Crush . | . . Escape Stasis . | . . Rewire . | . . Trap . | . . Miscellaneous . | . . Route ------- -11/Scrapyard -10/Materials History --------- Turn | Location | Event 1 | -11/Scrapyard | Discovered new exit (range 0) 1 | -11/Scrapyard | Entered Materials 118 | -10/Materials | Core integrity fell below 50% 180 | -10/Materials | Core integrity fell below 20% 182 | -10/Materials | Lost 3 parts (1p1n1w) 282 | -10/Materials | Destroyed by S-10 Pest with Light Assault Rifle Last Messages --------------- 00213_ K-01 Serf collects debris. 00215_ G-34 Mercenary destroyed. 00216_ K-01 Serf collects debris. 00216_ R-06 Scavenger collects Sml. Laser. 00219_ K-01 Serf collects debris. 00229_ Acquired 7 matter. 00232_ K-01 Serf collects debris. 00234_ K-01 Serf suffers critical hit (Destroy). 00234_ Acquired Ion Engine. 00236_ K-01 Serf collects debris. 00241_ Acquired Sensor Array. 00242_ K-01 Serf collects debris. 00253_ Connecting with Terminal... 00253_ Current location identified: Materials >>Traps(Locate) Found 3 traps in 1 array: 3x Shock Trap Map updated. 00260_ Acquired Lgt. Cannon. 00262_ Dropped Sml. Laser. Map ----- +----------------------------------------------------+ | ????????????????# """ # #? | | ????????????????# """ + #? | | ????????????????# # ## | | ??????+ ???????# # # | | ??????# ???????# # # | | ??????# ???????# # # | | ??????# ???????######### # | | ??????# ???????????????# | | ??????# ???????????????# | | ??????# ???????????????# [ | | ?????## ## ????????????# % # | | ?????# ##+############ %% # | | ?????# ! %%""" # | | ?????# [*""" # | | ?????# ? "" # | | ?????### !% ? """ # | | ???????# [%= # | | ???????+ ? # | | ???????# "T" """ # | | ???????##+############### """ # | | ???????# s #??????# """ # | | ???????# % #??????# """ # | | ???????# [ #??????# # | | ???????# #??????# # | | ???????# #??????# # | | ???????# @ #??????# ? | | ???????# #??????# "" # | | ???????# ! #??????# Y" # | | ???????####+######??????? ""?? | | ???????????^??????????????? ???? | | ???????????^??????????????? ???? | | ???????????^???????????????? ??????? | | ???????????????????????????????????? | | ???????????????????????????????????? | | ???????????????????????????????????? | | ???????????????????????????????????? | | ???????????????????????????????????? | | ???????????????????????????????????? | | ???????????????????????????????????? | | ???????????????????????????????????? | | ???????????????????????????????????? | | ???????????????????????????????????? | | ???????????????????????????????????? | | ???????????????????????????????????? | | ???????????????????????????????????? | | ???????????????????????????????????? | | ???????????????????????????????????? | | ???????????????????????????????????? | | ???????????????????????????????????? | | ???????????????????????????????????? | +----------------------------------------------------+ Best States ------------- Heat Dissipation 25 Energy Generation 10 Energy Capacity 250 Matter Stores 300 Matter Capacity 300 Sight Range 16 Robot Scan Range 14 Terrain Scan Density 10 Evasion (%) 55 Item Schematics ----------------- None Robot Schematics ------------------ None Fabricated ------------ Nothing Repaired ---------- Nothing Alien Tech Used ----------------- None Achievements -------------- None Challenges ------------ None Game ------ Seed CannonWaveCoupler Manual? 0 Play Time 00:06:52 Cumulative 23.6 hours Start 2025.07.22 @ 17:36:07 End 2025.07.22 @ 17:39:44 Sessions 1 Manual Loads 0 Difficulty Rogue Special Mode None Game No. 42 Rogue 42 Adventurer 0 Explorer 0 Win Type - Total 0 Types 0/0/0/0/0/0/0/0/0/0 Lore% 6 Gallery% 19 Achievement% 21 Wizard Run 0 Options --------- Layout 0 ASCII 1 Keyboard 0 Movement Numpad Keybinds 0 Fullscreen 1 Font 18/TerminusBold Map View 38x25 Zoom Use 84% Tactical HUD 1 Map Filters NONE Filters NONE Steam 1 RUN: 2b37b100-0848-4118-ac2f-5d5fbdf36dcc